fUST/lending_fUST_20250318
["ID","MTS","AMOUNT","RATE_DAILY","PERIOD"]
[356316399,1742245848047,-500.0,8.211e-05,2]
[356316400,1742245848056,-500.0,8.219e-05,2]
[356316401,1742245848066,-639.36149236,8.473e-05,2]
[356316402,1742245848075,-500.0,8.493e-05,2]
[356316403,1742245848085,-601.88818729,8.767e-05,2]
[356316404,1742245848095,-500.0,8.767e-05,2]
[356316405,1742245848105,-500.0,8.767e-05,2]
[356316406,1742245848115,-500.0,8.767e-05,2]
[356316407,1742245848125,-500.0,8.767e-05,2]
[356316408,1742245848135,-500.0,8.767e-05,2]
[356316409,1742245848145,-500.0,8.767e-05,2]
[356316410,1742245848154,-500.0,8.771e-05,2]
[356316411,1742245848164,-500.0,8.771e-05,2]
[356316412,1742245848173,-500.0,8.771e-05,2]
[356316413,1742245848183,-500.0,8.771e-05,2]
[356316414,1742245848192,-500.0,8.771e-05,2]
[356316415,1742245848202,-417.81762827,8.819e-05,2]
[356316416,1742245848212,-160.0,8.819e-05,2]
[356316417,1742245848222,-160.0,8.819e-05,2]
[356316418,1742245848232,-160.0,8.819e-05,2]
[356316419,1742245848242,-833.89138366,8.819e-05,2]
[356316420,1742245848256,-161.455,8.82e-05,2]
[356316421,1742245848265,-539.0,8.82e-05,2]
[356316422,1742245848274,-1913.0,8.82e-05,2]
[356316423,1742245848283,-587.0,8.949e-05,2]
[356316424,1742245848294,-91.67621156,9.041e-05,2]
[356316425,1742245848307,-408.32378844,9.041e-05,2]
[356316426,1742245848316,-500.0,9.041e-05,2]
[356316427,1742245848327,-500.0,9.041e-05,2]
[356316428,1742245848337,-500.0,9.041e-05,2]
[356316429,1742245848351,-500.0,9.041e-05,2]
[356316430,1742245848361,-500.0,9.041e-05,2]
[356316431,1742245848373,-500.0,9.041e-05,2]
[356316432,1742245848382,-500.0,9.041e-05,2]
[356316433,1742245848391,-500.0,9.041e-05,2]
[356316434,1742245848401,-500.0,9.041e-05,2]
[356316435,1742245848412,-500.0,9.041e-05,2]
[356316436,1742245848422,-500.0,9.041e-05,2]
[356316437,1742245848432,-500.0,9.041e-05,2]
[356316438,1742245848442,-500.0,9.041e-05,2]
[356316439,1742245848452,-500.0,9.041e-05,2]
[356316440,1742245848462,-500.0,9.041e-05,2]
[356316441,1742245848472,-500.0,9.041e-05,2]
[356316442,1742245848481,-361.00772443,9.041e-05,2]
[356316443,1742245848494,-138.99227557,9.041e-05,2]
[356316444,1742245848503,-500.0,9.041e-05,2]
[356316445,1742245848513,-500.0,9.041e-05,2]
[356316446,1742245848523,-500.0,9.041e-05,2]
[356316447,1742245848532,-500.0,9.041e-05,2]
[356316448,1742245848542,-500.0,9.041e-05,2]
[356316449,1742245848552,-500.0,9.041e-05,2]
[356316450,1742245848562,-557.62249441,9.041e-05,2]
[356316451,1742245848571,-500.0,9.041e-05,2]
[356316452,1742245848581,-500.0,9.041e-05,2]
[356316453,1742245848591,-500.0,9.041e-05,2]
[356316454,1742245848601,-500.0,9.041e-05,2]
[356316455,1742245848611,-500.0,9.041e-05,2]
[356316456,1742245848621,-500.0,9.041e-05,2]
[356316457,1742245848630,-500.0,9.041e-05,2]
[356316458,1742245848640,-330.96430724,9.041e-05,2]
[356316459,1742245848649,-500.0,9.041e-05,2]
[356316460,1742245848659,-500.0,9.041e-05,2]
[356316461,1742245848670,-500.0,9.041e-05,2]
[356316462,1742245848680,-500.0,9.041e-05,2]
[356316463,1742245848690,-500.0,9.041e-05,2]
[356316464,1742245848700,-500.0,9.041e-05,2]
[356316465,1742245848709,-500.0,9.041e-05,2]
[356316466,1742245848719,-500.0,9.041e-05,2]
[356316467,1742245848728,-500.0,9.041e-05,2]
[356316468,1742245848739,-500.0,9.041e-05,2]
[356316469,1742245848749,-500.0,9.041e-05,2]
[356316470,1742245848759,-500.0,9.041e-05,2]
[356316471,1742245848769,-500.0,9.041e-05,2]
[356316472,1742245848778,-167.82453464,9.041e-05,2]
[356316473,1742245848789,-500.0,9.041e-05,2]
[356316474,1742245848799,-500.0,9.041e-05,2]
[356316475,1742245848808,-500.0,9.041e-05,2]
[356316476,1742245848818,-500.0,9.041e-05,2]
[356316477,1742245848829,-500.0,9.041e-05,2]
[356316478,1742245848839,-500.0,9.041e-05,2]
[356316479,1742245848849,-500.0,9.041e-05,2]
[356316480,1742245848859,-500.0,9.041e-05,2]
[356316481,1742245848868,-510.29020163,9.041e-05,2]
[356316482,1742245848878,-500.0,9.041e-05,2]
[356316483,1742245848889,-500.0,9.041e-05,2]
[356316484,1742245848898,-500.0,9.041e-05,2]
[356316485,1742245848908,-500.0,9.041e-05,2]
[356316486,1742245848918,-500.0,9.041e-05,2]
[356316487,1742245848927,-500.0,9.041e-05,2]
[356316488,1742245848936,-500.0,9.041e-05,2]
[356316489,1742245848943,-500.0,9.041e-05,2]
[356316490,1742245848951,-500.0,9.041e-05,2]
[356316491,1742245848960,-500.0,9.041e-05,2]
[356316492,1742245848970,-500.0,9.041e-05,2]
[356316493,1742245848980,-500.0,9.041e-05,2]
[356316494,1742245848990,-500.0,9.041e-05,2]
[356316495,1742245849000,-500.0,9.041e-05,2]
[356316496,1742245849010,-500.0,9.041e-05,2]
[356316497,1742245849020,-500.0,9.041e-05,2]
[356316498,1742245849029,-500.0,9.041e-05,2]
[356316499,1742245849039,-500.0,9.041e-05,2]
[356316500,1742245849048,-500.0,9.041e-05,2]
[356316501,1742245849058,-500.0,9.041e-05,2]
[356316502,1742245849068,-500.0,9.041e-05,2]
[356316503,1742245849077,-500.0,9.041e-05,2]
[356316504,1742245849087,-500.0,9.041e-05,2]
[356316505,1742245849097,-500.0,9.041e-05,2]
[356316506,1742245849107,-500.0,9.041e-05,2]
[356316507,1742245849116,-500.0,9.041e-05,2]
[356316508,1742245849126,-500.0,9.041e-05,2]
[356316509,1742245849136,-500.0,9.041e-05,2]
[356316510,1742245849146,-574.22,9.041e-05,2]
[356316511,1742245849156,-500.0,9.041e-05,2]
[356316512,1742245849167,-500.0,9.041e-05,2]
[356316513,1742245849177,-500.0,9.041e-05,2]
[356316514,1742245849187,-537.8750143,9.041e-05,2]
[356316515,1742245849197,-623.67089982,9.041e-05,2]
[356316516,1742245849207,-552.25,9.041e-05,2]
[356316517,1742245849217,-548.02207951,9.041e-05,2]
[356316518,1742245849227,-500.0,9.041e-05,2]
[356316519,1742245849237,-500.0,9.041e-05,2]
[356316520,1742245849249,-523.0871593,9.041e-05,2]
[356316521,1742245849259,-500.0,9.041e-05,2]
[356316522,1742245849269,-500.0,9.041e-05,2]
[356316523,1742245849279,-500.0,9.041e-05,2]
[356316524,1742245849288,-500.0,9.041e-05,2]
[356316525,1742245849299,-549.75,9.041e-05,2]
[356316526,1742245849309,-500.0,9.041e-05,2]
[356316527,1742245849319,-500.0,9.041e-05,2]
[356316528,1742245849330,-500.0,9.041e-05,2]
[356316529,1742245849340,-500.0,9.041e-05,2]
[356316530,1742245849350,-1123.22,9.041e-05,2]
[356316531,1742245849360,-500.0,9.041e-05,2]
[356316532,1742245849371,-500.0,9.041e-05,2]
[356316533,1742245849382,-500.0,9.041e-05,2]
[356316534,1742245849392,-500.0,9.041e-05,2]
[356316535,1742245849402,-500.0,9.041e-05,2]
[356316536,1742245849412,-1009.43,9.041e-05,2]
[356316537,1742245849422,-500.0,9.041e-05,2]
[356316538,1742245849431,-662.72435774,9.041e-05,2]
[356316539,1742245849446,-335.55564226,9.041e-05,2]
[356316540,1742245849455,-388.67040276,9.041e-05,2]
[356316541,1742245849467,-111.32959724,9.041e-05,2]
[356316542,1742245849477,-222.87040277,9.041e-05,2]
[356316543,1742245849488,-277.12959723,9.041e-05,2]
[356316544,1742245849498,-500.0,9.041e-05,2]
[356316545,1742245849507,-500.0,9.041e-05,2]
[356316546,1742245849517,-330.20912108,9.041e-05,2]
[356316547,1742245849530,-363.95087892,9.041e-05,2]
[356316548,1742245849539,-500.0,9.041e-05,2]
[356316549,1742245849549,-500.0,9.041e-05,2]
[356316550,1742245849559,-500.0,9.041e-05,2]
[356316551,1742245849568,-396.22717763,9.041e-05,2]
[356316552,1742245849640,-103.77282237,9.041e-05,2]
[356316553,1742245849651,-500.0,9.041e-05,2]
[356316554,1742245849662,-527.28,9.041e-05,2]
[356316555,1742245849672,-500.0,9.041e-05,2]
[356316556,1742245849682,-500.0,9.041e-05,2]
[356316557,1742245849692,-500.0,9.041e-05,2]
[356316558,1742245849702,-500.0,9.041e-05,2]
[356316559,1742245849711,-500.0,9.041e-05,2]
[356316560,1742245849721,-500.0,9.041e-05,2]
[356316561,1742245849731,-500.0,9.041e-05,2]
[356316562,1742245849740,-500.0,9.041e-05,2]
[356316563,1742245849750,-500.0,9.041e-05,2]
[356316564,1742245849760,-500.0,9.041e-05,2]
[356316565,1742245849770,-1045.21,9.041e-05,2]
[356316566,1742245849779,-500.0,9.041e-05,2]
[356316567,1742245849789,-500.0,9.041e-05,2]
[356316568,1742245849798,-500.0,9.041e-05,2]
[356316569,1742245849808,-500.0,9.041e-05,2]
[356316570,1742245849819,-500.0,9.041e-05,2]
[356316571,1742245849828,-500.0,9.041e-05,2]
[356316572,1742245849838,-500.0,9.041e-05,2]
[356316573,1742245849847,-500.0,9.041e-05,2]
[356316574,1742245849857,-500.0,9.041e-05,2]
[356316575,1742245849866,-500.0,9.041e-05,2]
[356316576,1742245849875,-500.0,9.041e-05,2]
[356316577,1742245849885,-500.0,9.041e-05,2]
[356316578,1742245849894,-500.0,9.041e-05,2]
[356316579,1742245849904,-667.5,9.041e-05,2]
[356316580,1742245849913,-524.65,9.041e-05,2]
[356316581,1742245849924,-500.0,9.041e-05,2]
[356316582,1742245849934,-600.92,9.041e-05,2]
[356316583,1742245849944,-500.0,9.041e-05,2]
[356316584,1742245849955,-500.0,9.041e-05,2]
[356316585,1742245849964,-500.0,9.041e-05,2]
[356316586,1742245849974,-500.0,9.041e-05,2]
[356316587,1742245849984,-1065.91,9.041e-05,2]
[356316588,1742245849994,-500.0,9.041e-05,2]
[356316589,1742245850003,-7032.22,9.041e-05,2]
[356316590,1742245850013,-500.0,9.041e-05,2]
[356316591,1742245850022,-529.90872361,9.041e-05,2]
[356316592,1742245850033,-500.0,9.041e-05,2]
[356316593,1742245850043,-1278.98,9.041e-05,2]
[356316594,1742245850052,-500.0,9.041e-05,2]
[356316595,1742245850061,-500.0,9.041e-05,2]
[356316596,1742245850071,-500.0,9.041e-05,2]
[356316597,1742245850080,-500.0,9.041e-05,2]
[356316598,1742245850090,-500.0,9.041e-05,2]
[356316599,1742245850099,-500.0,9.041e-05,2]
[356316600,1742245850108,-500.0,9.041e-05,2]
[356316601,1742245850119,-500.0,9.041e-05,2]
[356316602,1742245850128,-500.0,9.041e-05,2]
[356316603,1742245850138,-208.68150911,9.041e-05,2]
[356316604,1742245850147,-500.0,9.041e-05,2]
[356316605,1742245850156,-500.0,9.041e-05,2]
[356316606,1742245850165,-500.0,9.041e-05,2]
[356316607,1742245850176,-667.87,9.041e-05,2]
[356316608,1742245850185,-428.44667816,9.041e-05,2]
[356316609,1742245850198,-71.55332184,9.041e-05,2]
[356316610,1742245850207,-326.5976171,9.041e-05,2]
[356316611,1742245850422,-0.0098397,9.041e-05,2]
[356316612,1742245850434,-186.91057785,9.041e-05,2]
[356316613,1742245850444,-263.7494222,9.041e-05,2]
[356316614,1742245850563,-236.2505778,9.041e-05,2]
[356316615,1742245850572,-500.0,9.041e-05,2]
[356316616,1742245850583,-549.22,9.041e-05,2]
[356316617,1742245850592,-500.0,9.041e-05,2]
[356316618,1742245850602,-500.0,9.041e-05,2]
[356316619,1742245850611,-600.42,9.041e-05,2]
[356316620,1742245850621,-500.0,9.041e-05,2]
[356316621,1742245850631,-500.0,9.041e-05,2]
[356316622,1742245850641,-1003.47,9.041e-05,2]
[356316623,1742245850651,-1852.46036116,9.041e-05,2]
[356316624,1742245850664,-649.27963884,9.041e-05,2]
[356316625,1742245850674,-500.0,9.041e-05,2]
[356316626,1742245850684,-500.0,9.041e-05,2]
[356316627,1742245850693,-4057.27,9.041e-05,2]
[356316628,1742245850703,-500.0,9.041e-05,2]
[356316629,1742245850712,-500.0,9.041e-05,2]
[356316630,1742245850723,-689.09,9.041e-05,2]
[356316631,1742245850733,-500.0,9.041e-05,2]
[356316632,1742245850743,-640.7,9.041e-05,2]
[356316633,1742245850752,-500.0,9.041e-05,2]
[356316634,1742245850762,-933.05,9.041e-05,2]
[356316635,1742245850772,-635.65,9.041e-05,2]
[356316636,1742245850782,-299.45683668,9.041e-05,2]
[356316637,1742245850791,-500.0,9.041e-05,2]
[356316638,1742245850801,-500.0,9.041e-05,2]
[356316639,1742245850812,-2236.14,9.041e-05,2]
[356316640,1742245850822,-500.0,9.041e-05,2]
[356316641,1742245850832,-500.0,9.041e-05,2]
[356316642,1742245850842,-1267.97,9.041e-05,2]
[356316643,1742245850853,-500.0,9.041e-05,2]
[356316644,1742245850863,-500.0,9.041e-05,2]
[356316645,1742245850873,-981.66,9.041e-05,2]
[356316646,1742245850883,-695.49,9.041e-05,2]
[356316647,1742245850893,-9982.91,9.041e-05,2]
[356316648,1742245850902,-500.0,9.041e-05,2]
[356316649,1742245850911,-500.0,9.041e-05,2]
[356316650,1742245850920,-500.0,9.041e-05,2]
[356316651,1742245850930,-4574.99,9.041e-05,2]
[356316652,1742245850939,-500.0,9.041e-05,2]
[356316653,1742245850950,-573.01,9.041e-05,2]
[356316654,1742245850959,-544.26,9.041e-05,2]
[356316655,1742245850969,-500.0,9.041e-05,2]
[356316656,1742245850978,-2608.25323066,9.041e-05,2]
[356316657,1742245850990,-1912.67676934,9.041e-05,2]
[356316658,1742245851000,-2050.07,9.041e-05,2]
[356316659,1742245851009,-1371.19,9.041e-05,2]
[356316660,1742245851021,-2257.82,9.041e-05,2]
[356316661,1742245851031,-2697.07,9.041e-05,2]
[356316662,1742245851041,-613.54,9.041e-05,2]
[356316663,1742245851049,-500.0,9.041e-05,2]
[356316664,1742245851059,-500.0,9.041e-05,2]
[356316665,1742245851068,-2724.68,9.041e-05,2]
[356316666,1742245851077,-500.0,9.041e-05,2]
[356316667,1742245851087,-683.57,9.041e-05,2]
[356316668,1742245851097,-580.46,9.041e-05,2]
[356316669,1742245851106,-1404.85,9.041e-05,2]
[356316670,1742245851116,-500.0,9.041e-05,2]
[356316671,1742245851125,-500.0,9.041e-05,2]
[356316672,1742245851134,-500.0,9.041e-05,2]
[356316673,1742245851143,-500.0,9.041e-05,2]
[356316674,1742245851152,-500.0,9.041e-05,2]
[356316675,1742245851161,-3898.63,9.041e-05,2]
[356316676,1742245851171,-500.0,9.041e-05,2]
[356316677,1742245851180,-500.0,9.041e-05,2]
[356316678,1742245851189,-1702.15,9.041e-05,2]
[356316679,1742245851199,-663.48,9.041e-05,2]
[356316680,1742245851208,-500.0,9.041e-05,2]
[356316681,1742245851217,-3019.89,9.041e-05,2]
[356316682,1742245851226,-500.0,9.041e-05,2]
[356316683,1742245851235,-4368.18,9.041e-05,2]
[356316684,1742245851245,-904.65,9.041e-05,2]
[356316685,1742245851258,-500.0,9.041e-05,2]
[356316686,1742245851267,-730.69,9.041e-05,2]
[356316687,1742245851277,-500.0,9.041e-05,2]
[356316688,1742245851287,-551.46,9.041e-05,2]
[356316689,1742245851297,-500.0,9.041e-05,2]
[356316690,1742245851306,-792.01,9.041e-05,2]
[356316691,1742245851315,-500.0,9.041e-05,2]
[356316692,1742245851325,-7076.17,9.041e-05,2]
[356316693,1742245851334,-651.59,9.041e-05,2]
[356316694,1742245851343,-8727.61,9.041e-05,2]
[356316695,1742245851353,-500.0,9.041e-05,2]
[356316696,1742245851362,-9754.49,9.041e-05,2]
[356316697,1742245851371,-500.0,9.041e-05,2]
[356316698,1742245851381,-500.0,9.041e-05,2]
[356316699,1742245851390,-500.0,9.041e-05,2]
[356316700,1742245851399,-500.0,9.041e-05,2]
[356316701,1742245851408,-500.0,9.041e-05,2]
[356316702,1742245851417,-1278.31,9.041e-05,2]
[356316703,1742245851427,-3264.35,9.041e-05,2]
[356316704,1742245851436,-500.0,9.041e-05,2]
[356316705,1742245851445,-753.52,9.041e-05,2]
[356316706,1742245851455,-785.42,9.041e-05,2]
[356316707,1742245851464,-500.0,9.041e-05,2]
[356316708,1742245851473,-500.0,9.041e-05,2]
[356316709,1742245851483,-500.0,9.041e-05,2]
[356316710,1742245851492,-500.0,9.041e-05,2]
[356316711,1742245851501,-500.0,9.041e-05,2]
[356316712,1742245851511,-1352.09,9.041e-05,2]
[356316713,1742245851520,-500.0,9.041e-05,2]
[356316714,1742245851529,-500.0,9.041e-05,2]
[356316715,1742245851538,-500.0,9.041e-05,2]
[356316716,1742245851547,-823.05,9.041e-05,2]
[356316717,1742245851557,-500.0,9.041e-05,2]
[356316718,1742245851566,-500.0,9.041e-05,2]
[356316719,1742245851575,-500.0,9.041e-05,2]
[356316720,1742245851585,-500.0,9.315e-05,2]
[356316721,1742245851594,-500.0,9.315e-05,2]
[356316722,1742245851603,-500.0,9.315e-05,2]
[356316723,1742245851612,-280.19600128,9.315e-05,2]
[356316724,1742245851621,-500.0,9.315e-05,2]
[356316725,1742245851630,-500.0,9.315e-05,2]
[356316726,1742245851639,-500.0,9.315e-05,2]
[356316727,1742245851649,-500.0,9.315e-05,2]
[356316728,1742245851658,-500.0,9.315e-05,2]
[356316729,1742245851668,-500.0,9.315e-05,2]
[356316730,1742245851677,-500.0,9.315e-05,2]
[356316731,1742245851686,-500.0,9.315e-05,2]
[356316732,1742245851696,-500.0,9.315e-05,2]
[356316733,1742245851705,-500.0,9.315e-05,2]
[356316734,1742245851714,-500.0,9.315e-05,2]
[356316735,1742245851723,-500.0,9.315e-05,2]
[356316736,1742245851733,-500.0,9.315e-05,2]
[356316737,1742245851742,-500.0,9.315e-05,2]
[356316738,1742245851751,-500.0,9.315e-05,2]
[356316739,1742245851760,-500.0,9.315e-05,2]
[356316740,1742245851769,-500.0,9.315e-05,2]
[356316741,1742245851779,-500.0,9.315e-05,2]
[356316742,1742245851788,-500.0,9.315e-05,2]
[356316743,1742245851798,-500.0,9.315e-05,2]
[356316744,1742245851807,-500.0,9.315e-05,2]
[356316745,1742245851816,-500.0,9.315e-05,2]
[356316746,1742245851825,-500.0,9.315e-05,2]
[356316747,1742245851835,-500.0,9.315e-05,2]
[356316748,1742245851844,-500.0,9.315e-05,2]
[356316749,1742245851854,-500.0,9.315e-05,2]
[356316750,1742245851863,-500.0,9.315e-05,2]
[356316751,1742245851873,-500.0,9.315e-05,2]
[356316752,1742245851882,-500.0,9.315e-05,2]
[356316753,1742245851891,-500.0,9.315e-05,2]
[356316754,1742245851901,-500.0,9.315e-05,2]
[356316755,1742245851911,-500.0,9.315e-05,2]
[356316756,1742245851920,-500.0,9.315e-05,2]
[356316757,1742245851929,-500.0,9.315e-05,2]
[356316758,1742245851939,-500.0,9.315e-05,2]
[356316759,1742245851948,-500.0,9.315e-05,2]
[356316760,1742245851957,-500.0,9.315e-05,2]
[356316761,1742245851966,-500.0,9.315e-05,2]
[356316762,1742245851976,-500.0,9.315e-05,2]
[356316763,1742245851985,-500.0,9.315e-05,2]
[356316764,1742245851994,-500.0,9.315e-05,2]
[356316765,1742245852003,-500.0,9.315e-05,2]
[356316766,1742245852012,-500.0,9.315e-05,2]
[356316767,1742245852022,-454.86,9.315e-05,2]
[356316768,1742245852031,-500.0,9.315e-05,2]
[356316769,1742245852041,-500.0,9.315e-05,2]
[356316770,1742245852052,-500.0,9.315e-05,2]
[356316771,1742245852063,-500.0,9.315e-05,2]
[356316772,1742245852072,-500.0,9.315e-05,2]
[356316773,1742245852082,-500.0,9.315e-05,2]
[356316774,1742245852092,-500.0,9.315e-05,2]
[356316775,1742245852102,-500.0,9.315e-05,2]
[356316776,1742245852112,-500.0,9.315e-05,2]
[356316777,1742245852123,-500.0,9.315e-05,2]
[356316778,1742245852135,-500.0,9.315e-05,2]
[356316779,1742245852144,-500.0,9.315e-05,2]
[356316780,1742245852156,-269.52053645,9.315e-05,2]
[356316781,1742245852166,-500.0,9.315e-05,2]
[356316782,1742245852176,-594.80093609,9.315e-05,2]
[356316783,1742245852185,-500.0,9.315e-05,2]
[356316784,1742245852195,-500.0,9.315e-05,2]
[356316785,1742245852204,-500.0,9.315e-05,2]
[356316786,1742245852213,-500.0,9.315e-05,2]
[356316787,1742245852223,-500.0,9.315e-05,2]
[356316788,1742245852232,-500.0,9.315e-05,2]
[356316789,1742245852240,-622.95380735,9.315e-05,2]
[356316790,1742245852253,-574.22,9.315e-05,2]
[356316791,1742245852263,-500.0,9.315e-05,2]
[356316792,1742245852272,-500.0,9.315e-05,2]
[356316793,1742245852281,-500.0,9.315e-05,2]
[356316794,1742245852291,-552.25,9.315e-05,2]
[356316795,1742245852300,-500.0,9.315e-05,2]
[356316796,1742245852309,-500.0,9.315e-05,2]
[356316797,1742245852320,-500.0,9.315e-05,2]
[356316798,1742245852331,-500.0,9.315e-05,2]
[356316799,1742245852340,-500.0,9.315e-05,2]
[356316800,1742245852350,-439.85603319,9.315e-05,2]
[356316801,1742245852359,-500.0,9.315e-05,2]
[356316802,1742245852368,-500.0,9.315e-05,2]
[356316803,1742245852378,-1123.22,9.315e-05,2]
[356316804,1742245852387,-500.0,9.315e-05,2]
[356316805,1742245852397,-500.0,9.315e-05,2]
[356316806,1742245852407,-500.0,9.315e-05,2]
[356316807,1742245852417,-500.0,9.315e-05,2]
[356316808,1742245852426,-1009.43,9.315e-05,2]
[356316809,1742245852436,-500.0,9.315e-05,2]
[356316810,1742245852445,-998.28,9.315e-05,2]
[356316811,1742245852455,-500.0,9.315e-05,2]
[356316812,1742245852464,-500.0,9.315e-05,2]
[356316813,1742245852474,-694.16,9.315e-05,2]
[356316814,1742245852483,-500.0,9.315e-05,2]
[356316815,1742245852493,-500.0,9.315e-05,2]
[356316816,1742245852503,-500.0,9.315e-05,2]
[356316817,1742245852512,-500.0,9.315e-05,2]
[356316818,1742245852521,-500.0,9.315e-05,2]
[356316819,1742245852531,-500.0,9.315e-05,2]
[356316820,1742245852541,-500.0,9.315e-05,2]
[356316821,1742245852550,-500.0,9.315e-05,2]
[356316822,1742245852559,-500.60975329,9.315e-05,2]
[356316823,1742245852568,-500.0,9.315e-05,2]
[356316824,1742245852577,-500.0,9.315e-05,2]
[356316825,1742245852587,-500.0,9.315e-05,2]
[356316826,1742245852597,-500.0,9.315e-05,2]
[356316827,1742245852607,-1045.21,9.315e-05,2]
[356316828,1742245852616,-500.0,9.315e-05,2]
[356316829,1742245852626,-500.0,9.315e-05,2]
[356316830,1742245852635,-500.0,9.315e-05,2]
[356316831,1742245852645,-500.0,9.315e-05,2]
[356316832,1742245852654,-446.23,9.315e-05,2]
[356316833,1742245852663,-500.0,9.315e-05,2]
[356316834,1742245852673,-500.0,9.315e-05,2]
[356316835,1742245852682,-500.0,9.315e-05,2]
[356316836,1742245852692,-500.0,9.315e-05,2]
[356316837,1742245852701,-667.5,9.315e-05,2]
[356316838,1742245852711,-524.65,9.315e-05,2]
[356316839,1742245852720,-600.92,9.315e-05,2]
[356316840,1742245852729,-500.0,9.315e-05,2]
[356316841,1742245852739,-500.0,9.315e-05,2]
[356316842,1742245852749,-500.0,9.315e-05,2]
[356316843,1742245852874,-500.0,9.315e-05,2]
[356316844,1742245852895,-1065.91,9.315e-05,2]
[356316845,1742245852904,-7032.22,9.315e-05,2]
[356316846,1742245852914,-500.0,9.315e-05,2]
[356316847,1742245852924,-500.0,9.315e-05,2]
[356316848,1742245852933,-1278.98,9.315e-05,2]
[356316849,1742245852943,-500.0,9.315e-05,2]
[356316850,1742245852952,-500.0,9.315e-05,2]
[356316851,1742245852962,-500.0,9.315e-05,2]
[356316852,1742245852971,-500.0,9.315e-05,2]
[356316853,1742245852981,-500.0,9.315e-05,2]
[356316854,1742245852990,-500.0,9.315e-05,2]
[356316855,1742245853000,-500.0,9.315e-05,2]
[356316856,1742245853010,-500.0,9.315e-05,2]
[356316857,1742245853019,-500.0,9.315e-05,2]
[356316858,1742245853028,-500.0,9.315e-05,2]
[356316859,1742245853040,-667.87,9.315e-05,2]
[356316860,1742245853049,-500.0,9.315e-05,2]
[356316861,1742245853058,-500.0,9.315e-05,2]
[356316862,1742245853068,-549.22,9.315e-05,2]
[356316863,1742245853077,-500.0,9.315e-05,2]
[356316864,1742245853087,-500.0,9.315e-05,2]
[356316865,1742245853097,-500.0,9.315e-05,2]
[356316866,1742245853107,-500.0,9.315e-05,2]
[356316867,1742245853122,-1003.47,9.315e-05,2]
[356316868,1742245853134,-2501.74,9.315e-05,2]
[356316869,1742245853143,-500.0,9.315e-05,2]
[356316870,1742245853153,-4057.27,9.315e-05,2]
[356316871,1742245853163,-500.0,9.315e-05,2]
[356316872,1742245853173,-689.09,9.315e-05,2]
[356316873,1742245853182,-640.7,9.315e-05,2]
[356316874,1742245853191,-500.0,9.315e-05,2]
[356316875,1742245853201,-933.05,9.315e-05,2]
[356316876,1742245853210,-635.65,9.315e-05,2]
[356316877,1742245853221,-500.0,9.315e-05,2]
[356316878,1742245853232,-500.0,9.315e-05,2]
[356316879,1742245853242,-2236.14,9.315e-05,2]
[356316880,1742245853256,-500.0,9.315e-05,2]
[356316881,1742245853265,-500.0,9.315e-05,2]
[356316882,1742245853275,-1267.97,9.315e-05,2]
[356316883,1742245853285,-500.0,9.315e-05,2]
[356316884,1742245853295,-500.0,9.315e-05,2]
[356316885,1742245853306,-981.66,9.315e-05,2]
[356316886,1742245853315,-695.49,9.315e-05,2]
[356316887,1742245853326,-9982.91,9.315e-05,2]
[356316888,1742245853335,-500.0,9.315e-05,2]
[356316889,1742245853345,-500.0,9.315e-05,2]
[356316890,1742245853354,-500.0,9.315e-05,2]
[356316891,1742245853364,-4574.99,9.315e-05,2]
[356316892,1742245853374,-500.0,9.315e-05,2]
[356316893,1742245853383,-544.26,9.315e-05,2]
[356316894,1742245853394,-500.0,9.315e-05,2]
[356316895,1742245853403,-4520.93,9.315e-05,2]
[356316896,1742245853412,-2050.07,9.315e-05,2]
[356316897,1742245853422,-1371.19,9.315e-05,2]
[356316898,1742245853431,-2257.82,9.315e-05,2]